{"text_format":"1","workbook":"xlsx","n_sheets":3,"sheets":["Blad1","Blad2","Blad3"],"not_rendered":{"charts":0,"images":0,"macros":0,"external_links":1,"defined_names":6,"comments":0,"pivot_tables":0},"unopened":[],"bounds":{"document_bytes":16777216,"sheet_cells":100000,"rows_first":2000,"rows_last":500,"rows_between":2000,"halvings":0,"cell_chars":16384,"cell_head_chars":4096},"cells_cut":0,"cells_raw":0,"read":"whole","date_system":"1900"}

{"sheet":"Blad1","index":0,"n_rows":33,"n_cols":10,"rows_kept":33,"cut":false,"hidden":false,"merged":[[32,0,32,5],[1,7,1,8],[2,7,2,8],[4,6,4,7],[0,0,0,9]]}
[{"$f":"CONCATENATE(\"Schuldoverzicht\",\" \",Clientnaam_1)","v":"Schuldoverzicht "}]
[]
["Naam",null,null,null,null,"Totale schuld",null,{"$f":"G33","v":0}]
["Cliëntnummer"]
["Naam partner",null,null,null,null,"datum → "]
[]
["Schuldeiser ","Referentie schuldeiser","Deurwaarder/incasso","Referentie incasso","Soort schuld","maand en/of jaar ontstaan","Huidig saldo","Lopende aflossingen","Bijzonderheden","Gezamenlijke schuld?"]
[null,null,null,null,null,null,null,null,{"$f":"IF(E8=\"P\",\"Als preferent in Allegro!\",\" \")","v":" "}]
[null,null,null,null,null,null,null,null,{"$f":"IF(E9=\"P\",\"Als preferent in Allegro!\",\" \")","v":" "}]
[null,null,null,null,null,null,null,null," "]
[null,null,null,null,null,null,null,null," "]
[null,null,null,null,null,null,null,null," "]
[null,null,null,null,null,null,null,null," "]
[null,null,null,null,null,null,null,null," "]
[null,null,null,null,null,null,null,null," "]
[null,null,null,null,null,null,null,null," "]
[null,null,null,null,null,null,null,null," "]
[null,null,null,null,null,null,null,null," "]
[null,null,null,null,null,null,null,null," "]
[null,null,null,null,null,null,null,null," "]
[null,null,null,null,null,null,null,null,{"$f":"IF(E21=\"P\",\"Als preferent in Allegro!\",\" \")","v":" "}]
[null,null,null,null,null,null,null,null,{"$f":"IF(E22=\"P\",\"Als preferent in Allegro!\",\" \")","v":" "}]
[null,null,null,null,null,null,null,null,{"$f":"IF(E23=\"P\",\"Als preferent in Allegro!\",\" \")","v":" "}]
[null,null,null,null,null,null,null,null," "]
[null,null,null,null,null,null,null,null," "]
[null,null,null,null,null,null,null,null," "]
[null,null,null,null,null,null,null,null," "]
[null,null,null,null,null,null,null,null," "]
[null,null,null,null,null,null,null,null," "]
[null,null,null,null,null,null,null,null," "]
[null,null,null,null,null,null,null,null," "]
[]
["Totalen",null,null,null,null,null,{"$f":"SUM(G8:G31)","v":0},{"$f":"SUM(H8:H30)","v":0}]

{"sheet":"Blad2","index":1,"n_rows":0,"n_cols":0,"rows_kept":0,"cut":false,"hidden":false,"merged":[]}

{"sheet":"Blad3","index":2,"n_rows":0,"n_cols":0,"rows_kept":0,"cut":false,"hidden":false,"merged":[]}